bitfinex/quotes_ETHUSD_20250731
["timestamp","ask_amount","ask_price","bid_price","bid_amount"]
[1753930456071,0.4516,3865.5,3865.0,4.83305842]
[1753930456410,0.4898,3865.7,3865.1,0.45697255]
[1753930456907,0.4898,3865.7,3865.1,0.4311]
[1753930457278,0.4898,3865.8,3865.4,4.83305842]
[1753930457482,0.4898,3865.7,3865.5,0.02586987]
[1753930457803,0.4898,3865.7,3865.4,4.83305842]
[1753930458707,0.4898,3865.6,3865.4,4.83305842]
[1753930459922,0.4898,3865.5,3864.8,4.83305842]
[1753930460230,0.4898,3865.5,3864.9,0.4311]
[1753930460508,0.4898,3865.5,3864.7,0.4311]
[1753930460711,0.4898,3865.5,3864.1,0.4311]
[1753930460921,0.438,3865.4,3864.1,4.61120454]
[1753930461069,0.4898,3865.3,3864.2,5.29003699]
[1753930461269,0.4898,3865.3,3864.3,0.9069]
[1753930461478,0.4898,3865.3,3864.4,0.4758]
[1753930461679,0.01477026,3868.4,3864.6,4.83305842]
[1753930461971,0.4898,3867.4,3865.8,4.83305842]
[1753930462171,0.67876894,3867.3,3865.9,0.02586719]
[1753930462408,0.67876894,3867.3,3865.8,5.26415842]
[1753930462409,0.24076894,3867.2,3865.8,5.26415842]
[1753930462713,6.00162736,3867.2,3865.1,4.83305842]
[1753930462882,0.24076894,3867.1,3865.4,0.4311]
[1753930463072,1.16856894,3867.1,3865.4,0.4311]
[1753930463273,1.16856894,3867.0,3865.4,5.26415842]
[1753930463612,1.16856894,3866.9,3865.4,0.4311]
[1753930463769,0.24076894,3866.8,3865.4,0.45697054]
[1753930463969,1.16856894,3866.7,3865.4,0.45697054]
[1753930464209,0.9278,3866.6,3865.4,0.4311]
[1753930464416,0.438,3866.6,3865.4,4.61120454]
[1753930464715,0.4898,3866.5,3865.4,4.61120454]
[1753930465069,0.438,3866.4,3865.4,4.61120454]
[1753930465380,0.4898,3866.3,3865.4,4.18010454]
[1753930465785,0.438,3866.2,3865.4,4.18010454]
[1753930466195,0.4898,3866.1,3865.4,4.18010454]
[1753930466505,0.01477026,3868.4,3865.4,4.18010454]
[1753930466708,1.1684534,3868.3,3866.3,4.83305842]
[1753930466887,0.48130848,3868.2,3866.3,4.83305842]
[1753930467081,0.48130848,3868.1,3866.4,4.20596839]
[1753930467305,0.2406534,3868.0,3866.4,4.20596839]
[1753930467509,0.2406534,3867.9,3866.4,4.18010454]
[1753930467812,0.002,3867.5,3866.4,4.18010454]
[1753930468013,0.9278,3867.4,3866.4,4.18010454]
[1753930468214,0.2406534,3867.3,3866.5,4.18010454]
[1753930468417,0.7304534,3867.3,3866.5,4.18010454]
[1753930468577,0.2406534,3867.2,3866.5,4.18010454]
[1753930468907,0.4898,3867.2,3866.5,4.18010454]
[1753930470186,0.4898,3867.2,3866.6,0.02586251]
[1753930470511,0.002,3867.5,3866.5,9.01316296]
[1753930470684,0.002,3867.5,3861.5,20.001]
[1753930470685,0.002,3867.5,3866.9,4.83305842]
[1753930471110,0.002,3867.5,3867.0,0.9069]
[1753930471659,0.002,3867.5,3867.1,0.93275917]
[1753930472210,0.002,3867.5,3867.2,0.9069]
[1753930472412,0.002,3867.5,3867.3,0.02585783]
[1753930472614,0.002,3867.5,3867.3,0.45695783]
[1753930473611,0.002,3867.5,3867.0,4.61120454]
[1753930473998,0.002,3867.5,3867.1,0.4311]
[1753930474194,0.002,3867.5,3867.1,0.9069]
[1753930474530,0.002,3867.5,3867.2,0.4311]
[1753930475017,0.002,3867.5,3867.1,0.4758]
[1753930475185,0.002,3867.5,3867.3,0.4311]
[1753930476001,0.002,3867.5,3867.1,0.4758]
[1753930476201,0.002,3867.5,3867.2,0.4311]
[1753930476646,0.002,3867.5,3866.8,4.18010454]
[1753930476811,0.4898,3867.4,3866.8,4.61120454]
[1753930477122,0.002,3867.5,3866.8,4.61120454]
[1753930477303,0.002,3867.5,3866.9,0.9069]
[1753930477821,0.002,3867.5,3867.0,0.4311]
[1753930478189,0.002,3867.5,3867.1,0.4311]
[1753930478516,0.002,3867.5,3867.1,0.9069]
[1753930478847,0.002,3867.5,3867.2,0.4311]
[1753930480023,0.002,3867.5,3867.2,4.61120454]
[1753930480958,0.002,3867.5,3867.2,4.18010454]
[1753930481095,0.4918,3867.5,3867.2,4.18010454]
[1753930481794,0.002,3867.5,3867.2,4.18010454]
[1753930482023,0.002,3867.5,3867.2,4.61120454]
[1753930485326,0.4918,3867.5,3867.2,4.18010454]
[1753930485931,0.002,3867.5,3867.2,4.18010454]
[1753930486097,0.002,3867.5,3867.2,4.61120454]
[1753930486296,0.002,3867.5,3867.3,4.18010454]
[1753930486756,0.4998,3867.5,3867.3,4.18010454]
[1753930487061,0.002,3867.5,3867.3,4.18010454]
[1753930487932,0.4998,3867.5,3867.3,4.18010454]
[1753930489028,0.002,3867.5,3867.3,4.18010454]
[1753930489249,0.002,3867.5,3867.3,4.65410454]
[1753930489459,0.002,3867.5,3867.3,4.18010454]
[1753930489757,0.002,3867.5,3867.4,4.18010454]
[1753930489939,0.002,3867.5,3867.4,5.14820454]
[1753930490139,0.002,3867.5,3867.4,4.65410454]
[1753930490367,0.002,3867.5,3867.4,5.14820454]
[1753930491142,0.002,3867.5,3867.4,5.14820454]
[1753930491476,0.002,3867.5,3867.4,4.18010454]
[1753930492275,0.002,3867.5,3867.4,5.14820454]
[1753930494953,0.002,3867.5,3867.4,9.98126296]
[1753930496160,0.002,3867.9,3867.4,9.98126296]
[1753930496364,0.01477026,3868.4,3867.8,4.83305842]
[1753930496690,0.01477026,3868.4,3867.9,0.9681]
[1753930497046,0.01477026,3868.4,3868.0,0.474]
[1753930497259,0.51257026,3868.4,3868.0,0.474]
[1753930497666,0.51111246,3868.4,3867.6,0.02585582]
[1753930497879,0.4963422,3868.3,3867.8,0.3764142]
[1753930498095,0.4948844,3868.3,3867.8,0.4941]
[1753930498780,0.4368,3868.2,3867.2,0.4941]
[1753930498963,0.4368,3868.2,3865.6,0.27981845]
[1753930499168,0.4368,3868.2,3866.6,4.83305842]
[1753930499378,0.4368,3868.2,3866.7,0.02586184]
[1753930499565,0.4368,3868.2,3866.7,0.51996184]
[1753930499880,0.4368,3868.2,3866.8,0.474]
[1753930500068,0.4978,3868.1,3866.6,4.83305842]
[1753930500266,0.4368,3868.0,3866.6,5.80115842]
[1753930500459,0.4978,3867.9,3866.6,5.30705842]
[1753930500666,0.4368,3867.8,3866.6,0.474]
[1753930501196,0.4978,3867.7,3866.6,0.474]
[1753930501493,0.4368,3867.6,3866.6,0.474]
[1753930502070,0.4978,3867.5,3866.6,0.474]
[1753930504660,0.4978,3867.7,3866.9,4.83305842]
[1753930504860,0.4978,3867.7,3867.0,0.474]
[1753930506516,0.9346,3867.7,3867.0,0.474]
[1753930507686,0.4978,3867.6,3867.0,0.474]
[1753930508417,0.4978,3867.6,3867.1,0.02585917]
[1753930508726,0.4978,3867.8,3867.2,0.474]
[1753930508883,0.4978,3867.8,3866.9,4.83305842]
[1753930509084,0.4978,3867.8,3866.9,5.80115842]
[1753930509281,0.4368,3867.7,3866.9,4.83305842]
[1753930509487,0.01331246,3868.4,3866.9,4.83305842]
[1753930509710,0.9346,3868.3,3867.0,0.99395983]
[1753930509904,0.4978,3868.2,3867.1,0.9681]
[1753930510120,0.9346,3868.2,3867.1,0.99395917]
[1753930510318,0.01331246,3868.4,3867.1,0.99395917]
[1753930510485,0.9346,3868.1,3866.8,0.4941]
[1753930510688,0.9346,3868.0,3866.8,0.9681]
[1753930511022,0.9346,3867.9,3866.8,0.99396117]
[1753930511229,0.9346,3867.8,3866.8,0.99396117]
[1753930511517,0.4978,3867.7,3866.8,0.9681]
[1753930511737,0.4998,3867.7,3866.8,0.9681]
[1753930512021,0.4368,3867.6,3866.7,4.83305842]
[1753930512226,0.4978,3867.5,3866.7,4.83305842]
[1753930512427,0.002,3867.7,3866.7,4.83305842]
[1753930512900,0.002,3867.7,3866.8,4.18010454]
[1753930513290,0.002,3867.7,3866.9,0.0258605]
[1753930518134,0.002,3867.7,3867.1,4.83305842]
[1753930518332,0.002,3867.7,3867.5,4.83305842]
[1753930518513,0.002,3867.7,3867.6,4.18010454]
[1753930521338,0.002,3867.7,3867.6,4.20596036]
[1753930523040,0.002,3868.1,3867.6,4.20596036]
[1753930523211,0.002,3868.1,3867.6,4.18010454]
[1753930527714,0.002,3868.1,3867.7,4.18010454]
[1753930533348,0.002,3868.1,3867.8,0.02585449]
[1753930533550,0.002,3868.1,3867.9,4.18010454]
[1753930533755,0.002,3868.1,3868.0,0.02585315]
[1753930534253,0.01331246,3868.4,3867.9,4.18010454]
[1753930534254,0.002,3868.3,3867.9,4.18010454]
[1753930539458,0.002,3868.3,3868.0,4.18010454]
[1753930540060,0.002,3868.3,3868.1,0.02585248]
[1753930540639,0.002,3868.3,3868.0,4.18010454]
[1753930545394,0.002,3868.3,3868.1,4.18010454]
[1753930551316,4.83505842,3868.3,3867.1,4.18010454]
[1753930552712,0.002,3868.3,3867.7,4.83305842]
[1753930552878,0.002,3868.3,3867.8,0.02585449]
[1753930553084,0.002,3868.3,3867.2,0.0258585]
[1753930554217,0.002,3868.3,3867.3,0.02585783]
[1753930555280,0.002,3868.3,3867.3,4.85891625]
[1753930555514,0.002,3868.3,3867.3,4.83305842]
[1753930556012,0.002,3868.3,3866.9,0.001]
[1753930556184,0.002,3868.3,3866.9,4.83405842]
[1753930556692,0.002,3868.3,3867.3,0.001]
[1753930560811,4.83305842,3868.2,3867.3,0.001]
[1753930561595,0.002,3868.3,3867.3,0.001]
[1753930562426,4.83305842,3868.1,3867.3,0.001]
[1753930563536,4.83305842,3867.7,3867.3,0.001]
[1753930564117,4.83305842,3868.0,3867.3,0.001]
[1753930564312,4.83305842,3867.6,3867.3,0.001]
[1753930567020,0.03120254,3867.5,3867.3,0.001]
[1753930567204,0.002,3868.3,3867.3,0.001]
[1753930568215,4.83305842,3868.2,3867.3,0.001]
[1753930568592,0.002,3868.3,3867.3,0.001]
[1753930571125,4.83305842,3868.2,3867.3,0.001]
[1753930571687,0.002,3868.3,3867.3,0.001]
[1753930575015,4.83305842,3868.1,3867.3,0.001]
[1753930578111,0.002,3868.3,3867.3,0.001]
[1753930578307,4.83305842,3868.1,3867.3,0.001]
[1753930582543,0.002,3868.3,3867.3,0.001]
[1753930586857,0.002,3868.3,3867.4,4.18010454]
[1753930589145,0.002,3868.3,3867.5,4.18010454]
[1753930592647,0.002,3868.3,3867.6,0.9164]
[1753930592853,0.002,3868.3,3867.6,5.09650454]
[1753930593056,0.002,3868.3,3867.6,4.64280454]
[1753930593360,0.002,3868.3,3867.7,0.4537]
[1753930594153,0.002,3868.3,3867.6,4.18010454]
[1753930594358,0.47,3868.2,3867.7,0.4537]
[1753930594653,0.47,3868.2,3867.8,0.4537]
[1753930594824,0.002,3868.3,3867.8,0.4537]
[1753930595025,0.472,3868.3,3867.8,0.4537]
[1753930597776,0.47,3868.2,3867.3,0.001]
[1753930597956,0.8989,3868.2,3867.5,0.4537]
[1753930598159,0.47,3868.1,3867.3,0.001]
[1753930598668,0.4289,3868.0,3867.3,0.001]
[1753930599174,0.47,3867.9,3867.3,0.001]
[1753930599349,4.83305842,3867.5,3867.3,0.001]
[1753930599665,0.4289,3867.8,3867.3,0.001]
[1753930599867,0.8989,3867.4,3867.3,0.001]
[1753930601279,0.47,3867.4,3867.3,0.001]
[1753930601773,0.4289,3867.7,3867.3,0.001]
[1753930601948,0.002,3868.3,3867.3,0.4547]
[1753930602152,0.47,3868.2,3867.3,0.4547]
[1753930602351,0.4289,3868.1,3867.3,0.001]
[1753930602750,0.47,3868.0,3867.3,0.001]
[1753930604389,0.4612,3868.1,3867.3,0.001]
[1753930604683,0.4612,3868.1,3867.3,0.9637]
[1753930605571,0.4612,3868.1,3867.3,0.4753]
[1753930605778,0.4584,3868.0,3867.3,0.001]
[1753930606178,0.4612,3867.9,3867.3,0.001]
[1753930607563,0.4612,3868.1,3867.3,0.4753]
[1753930607891,0.4612,3868.1,3867.4,0.02585716]
[1753930608595,0.4612,3868.1,3867.3,0.9637]
[1753930608888,0.9196,3868.1,3867.3,0.9637]
[1753930609094,0.4612,3868.0,3867.3,0.4753]
[1753930613511,0.4612,3868.0,3867.4,4.18010454]
[1753930615610,0.4584,3867.9,3867.4,4.18010454]
[1753930615811,0.9196,3867.8,3867.4,4.18010454]
[1753930616014,0.4584,3867.8,3867.4,4.18010454]
[1753930616225,0.4612,3867.7,3867.4,4.18010454]
[1753930617518,0.4612,3867.6,3867.4,4.18010454]
[1753930618014,0.4584,3867.8,3867.4,4.18010454]
[1753930618247,0.4584,3867.8,3867.3,0.001]
[1753930618525,4.83505842,3868.3,3867.3,0.001]
[1753930618526,0.9196,3867.7,3867.3,0.001]
[1753930618931,4.83505842,3868.3,3867.3,0.001]
[1753930619228,0.9196,3867.6,3867.3,0.001]
[1753930619595,0.9196,3867.5,3867.3,0.001]
[1753930619999,0.9196,3867.4,3867.3,0.001]
[1753930621330,5.75265842,3867.4,3867.3,0.001]
[1753930622148,0.9196,3867.4,3867.3,0.001]
[1753930628007,0.95080254,3867.4,3867.3,0.001]
[1753930628230,0.9196,3867.4,3867.3,0.001]
[1753930641376,0.4929,3867.6,3867.3,0.001]
[1753930641578,0.4929,3867.4,3867.3,0.001]
[1753930643366,0.4622,3867.7,3867.3,0.001]
[1753930643565,0.24215821,3867.6,3867.3,0.001]
[1753930643975,0.4929,3867.5,3867.3,0.001]
[1753930644175,0.9551,3867.5,3867.3,0.001]
[1753930644475,0.4929,3867.4,3867.3,0.001]
[1753930651813,0.002,3868.1,3867.3,0.9473]
[1753930652011,0.24251192,3868.0,3867.3,0.001]
[1753930652215,0.002,3868.1,3867.4,0.9463]
[1753930652389,0.24245672,3868.0,3867.4,0.9463]
[1753930652589,0.4949,3868.1,3867.4,0.9463]
[1753930652815,0.24245219,3868.0,3867.4,0.9463]
[1753930652987,0.4949,3868.1,3867.4,0.9463]
[1753930653186,0.24245217,3868.0,3867.4,0.9463]
[1753930653816,0.4949,3868.1,3867.4,0.9463]
[1753930658090,4.83305842,3867.9,3867.4,0.9463]
[1753930658623,0.4929,3867.8,3867.4,0.9463]
[1753930658821,4.83305842,3867.9,3867.4,0.4727]
[1753930659011,0.9551,3867.8,3867.3,0.001]
[1753930659415,0.4929,3867.7,3867.3,0.001]
[1753930659827,0.4929,3867.6,3867.3,0.001]
[1753930660207,5.78815842,3867.5,3867.3,0.001]
[1753930660435,0.9551,3867.4,3867.3,0.001]
[1753930661733,0.98630254,3867.4,3867.3,0.001]
[1753930661935,0.9551,3867.4,3867.3,0.001]
[1753930668065,0.4929,3867.4,3867.3,0.001]
[1753930669853,4.83305842,3868.0,3867.3,0.001]
[1753930670059,0.002,3868.1,3867.4,0.4768]
[1753930670374,0.002,3868.1,3867.5,0.4608]
[1753930671160,4.83305842,3867.9,3867.5,0.4608]
[1753930673081,4.83305842,3867.9,3867.6,0.4608]
[1753930673940,5.31225842,3867.9,3867.6,0.4608]
[1753930674971,5.31225842,3867.9,3867.4,0.4608]
[1753930675176,5.31225842,3867.9,3867.3,0.001]
[1753930675380,5.31225842,3867.9,3867.4,0.4608]
[1753930675587,0.002,3868.1,3867.5,0.9376]
[1753930676071,0.002,3868.1,3867.6,0.9376]
[1753930676576,0.002,3868.1,3867.6,0.4768]
[1753930676752,4.83305842,3867.9,3867.4,4.18010454]
[1753930676947,4.83305842,3867.9,3867.5,0.9376]
[1753930677273,4.83305842,3867.9,3867.6,0.9376]
[1753930678041,4.83305842,3867.9,3867.6,0.4608]
[1753930679644,0.4792,3867.8,3867.3,0.001]
[1753930679848,4.83305842,3867.5,3867.3,0.001]
[1753930680247,0.4792,3867.4,3867.3,0.001]
[1753930681977,0.002,3868.1,3867.3,0.001]
[1753930682194,0.002,3868.1,3867.3,0.9386]
[1753930682400,0.002,3868.1,3867.3,0.001]
[1753930682708,0.002,3868.1,3867.4,0.9376]
[1753930683780,0.002,3868.1,3867.5,0.4608]
[1753930685487,0.002,3868.1,3867.5,0.9376]
[1753930688028,0.002,3868.1,3867.4,4.18010454]
[1753930688245,0.002,3868.1,3867.5,0.9376]
[1753930688409,0.002,3868.1,3867.6,0.4608]
[1753930688826,0.4812,3868.1,3867.6,0.4608]
[1753930689425,0.4812,3868.1,3867.7,0.4608]
[1753930690926,0.002,3868.1,3867.8,0.4768]
[1753930691130,0.002,3868.1,3867.9,0.4608]
[1753930691502,0.002,3868.1,3867.6,0.9376]
[1753930691702,0.002,3868.1,3867.7,0.4608]
[1753930691899,0.4812,3868.1,3867.7,0.4608]
[1753930692428,0.931,3868.0,3867.3,0.4618]
[1753930692634,0.4792,3867.9,3867.3,0.4618]
[1753930693935,0.4792,3867.9,3867.3,0.9386]
[1753930695730,0.4792,3867.9,3867.3,0.4618]
[1753930695940,0.4792,3867.9,3867.3,0.9369]
[1753930696106,0.4792,3867.9,3867.3,0.4761]
[1753930696302,0.4792,3867.9,3867.4,0.462]
[1753930696637,0.483,3868.1,3867.5,0.9371]
[1753930697344,0.483,3868.1,3867.5,0.462]
[1753930698834,4.83305842,3867.8,3867.3,0.001]
[1753930699255,4.83305842,3867.4,3867.3,0.001]
[1753930699631,5.75505842,3867.4,3867.3,0.001]
[1753930703138,0.922,3867.4,3867.3,0.001]
[1753930705683,0.002,3868.1,3867.3,0.9381]
[1753930705992,0.481,3868.0,3867.3,0.9381]
[1753930707559,4.83305842,3867.9,3867.3,0.463]
[1753930707759,0.922,3867.8,3867.3,0.001]
[1753930708174,0.481,3867.7,3867.3,0.001]
[1753930708367,0.481,3867.7,3867.3,0.463]
[1753930708584,0.481,3867.8,3867.4,0.462]
[1753930708974,4.83305842,3867.9,3867.3,0.001]
[1753930709173,0.481,3867.7,3867.3,0.001]
[1753930709555,5.27405842,3867.9,3867.3,0.001]
[1753930709758,4.83305842,3867.9,3867.3,0.001]
[1753930710087,0.922,3867.8,3867.3,0.001]
[1753930710786,0.922,3867.7,3867.3,0.001]
[1753930711190,0.002,3868.1,3867.3,0.4761]
[1753930711352,0.002,3868.1,3867.4,0.462]
[1753930711557,0.481,3868.0,3867.4,0.9371]
[1753930712175,0.481,3868.0,3867.3,0.001]
[1753930712417,4.83305842,3867.8,3867.3,0.001]
[1753930712721,5.27405842,3867.9,3867.3,0.001]
[1753930712921,0.481,3867.8,3867.3,0.001]
[1753930713390,0.481,3867.7,3867.3,0.001]
[1753930714417,5.27405842,3867.9,3867.3,0.001]
[1753930714622,0.481,3867.6,3867.3,0.001]
[1753930715002,0.481,3867.5,3867.3,0.001]
[1753930717402,0.481,3867.7,3867.3,0.001]
[1753930717806,0.481,3867.6,3867.3,0.001]
[1753930718223,0.922,3867.6,3867.3,0.001]
[1753930718395,0.481,3867.6,3867.3,0.001]
[1753930718727,0.922,3867.5,3867.3,0.001]
[1753930718940,0.002,3868.1,3867.3,0.463]
[1753930719096,0.002,3868.1,3867.4,0.9371]
[1753930719493,0.002,3868.1,3867.5,0.9371]
[1753930719700,0.002,3868.1,3867.6,0.9371]
[1753930719917,0.002,3868.1,3867.7,0.9371]
[1753930720116,0.002,3868.1,3867.8,0.462]
[1753930723447,0.483,3868.1,3867.8,0.462]
[1753930724622,0.483,3868.1,3867.4,4.18010454]
[1753930724830,0.483,3868.1,3867.7,0.4689]
[1753930725243,0.002,3868.1,3867.7,0.4689]
[1753930725451,0.4984,3868.0,3867.7,0.4689]
[1753930725950,0.002,3868.1,3867.7,0.4689]
[1753930726353,0.5004,3868.1,3867.7,0.4689]
[1753930728944,0.4984,3868.0,3867.7,0.4689]
[1753930729148,0.4984,3868.0,3867.5,5.14560454]
[1753930729324,0.4984,3868.0,3867.6,0.4689]
[1753930732059,0.002,3868.1,3867.6,0.4689]
[1753930732246,0.4984,3868.0,3867.6,0.4689]
[1753930734463,0.002,3868.1,3867.5,4.18010454]
[1753930734464,0.9371,3867.9,3867.5,4.18010454]
[1753930734757,0.4984,3867.9,3867.5,0.4689]
[1753930735346,0.4984,3867.8,3867.5,0.4689]
[1753930735546,0.002,3868.1,3867.5,0.4689]
[1753930735747,0.4984,3868.0,3867.5,0.4689]
[1753930735947,0.4984,3867.9,3867.5,0.4689]
[1753930736360,0.4984,3867.9,3867.5,0.9655]
[1753930738063,0.4984,3867.9,3867.6,0.4689]
[1753930740669,0.5004,3868.1,3867.7,0.4689]
[1753930740962,0.4984,3868.0,3867.7,0.4689]
[1753930741362,0.002,3868.1,3867.6,4.18010454]
[1753930741533,0.002,3868.1,3867.8,0.4689]
[1753930742086,0.002,3868.1,3867.9,0.4689]
[1753930742757,0.002,3868.1,3867.7,0.9655]
[1753930742961,0.5004,3868.1,3867.7,0.4689]
[1753930744669,0.9391,3868.1,3867.6,4.67670454]
[1753930745361,0.4387,3868.0,3867.6,4.67670454]
[1753930746172,0.5004,3868.1,3867.6,4.67670454]
[1753930746372,0.002,3868.1,3867.6,4.18010454]
[1753930746542,0.4984,3868.0,3867.7,4.18010454]
[1753930747536,0.9371,3868.0,3867.7,4.18010454]
[1753930747765,0.4387,3868.0,3867.7,4.18010454]
[1753930747960,0.002,3868.1,3867.7,4.18010454]
[1753930748134,0.4984,3868.0,3867.7,4.18010454]
[1753930748338,0.9371,3868.0,3867.7,4.18010454]
[1753930748792,0.4984,3867.9,3867.7,4.18010454]
[1753930749069,0.4984,3867.8,3867.7,4.18010454]
[1753930749576,0.4387,3868.0,3867.7,4.18010454]
[1753930749906,0.4984,3867.9,3867.7,4.18010454]
[1753930751002,0.4387,3868.0,3867.7,4.18010454]
[1753930751296,0.4984,3867.8,3867.7,4.18010454]
[1753930752579,0.4387,3868.0,3867.6,0.001]
[1753930752785,0.4984,3868.0,3867.6,0.001]
[1753930752985,0.4984,3868.0,3867.6,0.4699]
[1753930753607,0.4984,3868.0,3867.6,0.9665]
[1753930753804,0.002,3868.1,3867.6,0.4699]
[1753930754094,0.4952,3867.9,3867.6,0.4699]
[1753930755582,0.9603,3868.1,3867.6,0.4699]
[1753930755892,0.4952,3868.0,3867.6,0.4699]
[1753930756308,0.4651,3868.1,3867.6,0.4699]
[1753930756600,0.4952,3868.0,3867.6,0.4699]
[1753930759216,0.4952,3867.9,3867.6,0.4699]
[1753930759590,0.9603,3868.1,3867.6,0.4699]
[1753930759905,0.4952,3868.0,3867.6,0.4699]
[1753930760408,0.4952,3867.9,3867.6,0.4699]
[1753930762998,0.4952,3867.9,3867.6,0.001]
[1753930764422,0.4651,3868.1,3867.6,0.001]
[1753930764726,0.9583,3867.8,3867.6,0.001]
[1753930764931,0.4952,3867.8,3867.6,0.001]
[1753930765135,0.9583,3867.7,3867.6,0.001]
[1753930765952,0.4952,3867.7,3867.6,0.001]
[1753930766242,0.9583,3867.7,3867.6,0.001]
[1753930775271,0.4952,3867.7,3867.6,0.001]
[1753930775476,0.9583,3867.7,3867.6,0.001]
[1753930778194,0.4952,3867.7,3867.6,0.001]
[1753930780495,0.9583,3867.7,3867.6,0.001]
[1753930784813,0.4952,3867.7,3867.6,0.001]
[1753930790917,0.9393,3867.7,3867.6,0.001]
[1753930791119,0.4952,3867.7,3867.6,0.001]
[1753930793355,0.9393,3867.7,3867.6,0.001]
[1753930794751,0.002,3868.1,3867.6,0.001]
[1753930794918,0.4833,3867.7,3867.6,0.001]
[1753930795124,0.9274,3867.7,3867.6,0.001]
[1753930797624,0.92448933,3867.7,3867.6,0.001]
[1753930798638,0.002,3868.1,3867.6,0.001]
[1753930798860,0.68658373,3868.0,3867.6,0.001]
[1753930799037,0.002,3868.1,3867.6,0.001]
[1753930799246,0.4441,3867.9,3867.6,0.001]
[1753930799447,0.4441,3867.8,3867.6,0.001]
[1753930799637,0.4833,3867.7,3867.6,0.001]
[1753930800029,0.9274,3867.7,3867.6,0.001]
[1753930800429,5.74751826,3867.7,3867.6,0.001]
[1753930801040,0.72577761,3867.7,3867.6,0.001]
[1753930801240,0.4833,3867.7,3867.6,0.001]
[1753930801440,0.9274,3867.7,3867.6,0.001]
[1753930802661,1.20098823,3867.7,3867.6,0.001]
[1753930803038,1.16978569,3867.7,3867.6,0.001]
[1753930803225,1.20098823,3867.7,3867.6,0.001]
[1753930803958,1.16978569,3867.7,3867.6,0.001]
[1753930804260,0.4853,3868.1,3867.6,0.4633]
[1753930804573,4.82011826,3867.9,3867.6,0.001]
[1753930804778,0.24231306,3867.8,3867.6,0.001]
[1753930805073,0.95860254,3867.8,3867.6,0.001]
[1753930805374,0.4441,3867.7,3867.6,0.001]
[1753930805572,0.9274,3867.7,3867.6,0.001]
[1753930806601,0.4833,3867.7,3867.6,0.001]
[1753930807906,0.9274,3867.7,3867.6,0.001]
[1753930809017,0.4833,3867.7,3867.6,0.001]
[1753930812652,0.4833,3868.0,3867.6,0.001]
[1753930812833,0.4833,3867.9,3867.6,0.001]
[1753930813151,0.4833,3867.8,3867.6,0.001]
[1753930813308,0.9274,3867.8,3867.6,0.001]
[1753930813511,0.4441,3867.7,3867.6,0.001]
[1753930813911,0.9274,3867.7,3867.6,0.001]
[1753930814256,0.4833,3867.7,3867.6,0.001]
[1753930815048,0.4318,3868.0,3867.6,0.001]
[1753930815247,0.4933,3868.0,3867.6,0.4594]
[1753930815456,0.4933,3868.0,3867.6,0.9248]
[1753930816054,0.4933,3868.0,3867.6,0.4594]
[1753930818416,0.4933,3867.9,3867.6,0.4594]
[1753930819737,0.002,3868.1,3867.6,0.001]
[1753930819923,0.002,3868.1,3867.7,0.9238]
[1753930820123,0.4953,3868.1,3867.7,0.4584]
[1753930820423,0.4933,3868.0,3867.7,0.4584]
[1753930820646,0.4933,3868.0,3867.6,0.001]
[1753930820857,0.4933,3867.9,3867.6,0.001]
[1753930822056,0.002,3868.1,3867.7,0.9238]
[1753930822218,0.4933,3868.0,3867.6,0.001]
[1753930822418,0.9251,3867.9,3867.6,0.001]
[1753930822851,0.4933,3867.8,3867.6,0.001]
[1753930827327,0.4933,3868.0,3867.6,0.001]
[1753930827760,0.9251,3868.0,3867.6,0.001]
[1753930827937,0.4933,3867.9,3867.6,0.001]
[1753930828976,0.4933,3867.8,3867.6,0.001]
[1753930829276,0.002,3868.1,3867.7,0.4584]
[1753930829441,0.4933,3868.0,3867.6,0.001]
[1753930829641,0.4338,3868.1,3867.6,0.001]
[1753930829841,0.4933,3867.9,3867.6,0.4594]
[1753930831039,0.4338,3868.1,3867.6,0.001]
[1753930831235,0.9251,3868.0,3867.6,0.001]
[1753930831697,0.002,3868.1,3867.6,0.001]
[1753930831974,0.9251,3867.9,3867.6,0.001]
[1753930832180,0.9251,3867.8,3867.6,0.001]
[1753930832335,0.002,3868.1,3867.6,0.001]
[1753930832536,0.9251,3867.7,3867.6,0.001]
[1753930840404,0.95630254,3867.7,3867.6,0.001]
[1753930841498,0.9251,3867.7,3867.6,0.001]
[1753930848317,0.95630254,3867.7,3867.6,0.001]
[1753930849693,0.95630254,3867.7,3867.3,0.001]
[1753930849694,1.1983415,3867.7,3867.3,0.001]
[1753930849889,4.82011826,3867.4,3867.3,0.001]
[1753930850512,5.76541826,3867.4,3867.3,0.001]
[1753930851686,5.76541826,3867.4,3866.9,0.001]
[1753930852019,4.82011826,3867.0,3866.9,0.001]
[1753930852325,5.7966208,3867.0,3866.9,0.001]
[1753930852525,6.00732084,3867.0,3866.9,0.001]
[1753930853186,6.00732084,3867.0,3866.5,0.001]
[1753930853386,1.18720258,3866.9,3866.5,0.001]
[1753930853608,4.82011826,3866.6,3866.5,0.001]
[1753930854037,5.76541826,3866.6,3866.5,0.001]
[1753930856492,0.4979,3866.9,3866.5,0.001]
[1753930856691,5.26751826,3867.4,3866.5,0.9627]